fUSD/lending_fUSD_20260108
["ID","MTS","AMOUNT","RATE_DAILY","PERIOD"]
[400837624,1767841843976,-300.0,0.00016968,2]
[400837626,1767841843985,-179.04,0.00016978,2]
[400837628,1767841843994,-1322.98,0.00016978,2]
[400837630,1767841844003,-734.53,0.00016978,2]
[400837632,1767841844012,-500.0,0.00016986,2]
[400837634,1767841844022,-304.30680198,0.00016987,2]
[400837636,1767841844032,-150.0,0.00016994,2]
[400837638,1767841844041,-300.0,0.00016997,2]
[400837640,1767841844050,-300.0,0.00016997,2]
[400837642,1767841844059,-233.5,0.00017,2]
[400837643,1767841844068,-300.0,0.00017006,2]
[400837645,1767841844077,-52701.19,0.00017008,2]
[400837647,1767841844086,-150.0,0.00017047,2]
[400837649,1767841844095,-1480.81,0.00017072,2]
[400837651,1767841844104,-1100.0,0.00017078,2]
[400837653,1767841844113,-1000.0,0.00017079,2]
[400837655,1767841844122,-300.0,0.00017084,2]
[400837657,1767841844131,-451.90263959,0.00017093,2]
[400837659,1767841844140,-500.0,0.00017093,2]
[400837661,1767841844149,-150.0,0.000171,2]
[400837663,1767841844159,-300.0,0.000171,2]
[400837665,1767841844169,-20452.74518303,0.000171,2]
[400837667,1767841844181,-1000.0,0.00017101,2]
[400837669,1767841844195,-875.27078638,0.00017125,2]
[400837671,1767841844205,-10485.9218373,0.00017129,2]
[400837673,1767841844215,-2061.0,0.0001714,2]
[400837675,1767841844224,-150.0,0.00017153,2]
[400837677,1767841844234,-300.0,0.00017157,2]
[400837679,1767841844244,-300.0,0.00017182,2]
[400837681,1767841844257,-300.0,0.00017182,2]
[400837683,1767841844266,-1000.0,0.000172,2]
[400837685,1767841844276,-150.0,0.00017206,2]
[400837687,1767841844288,-157.19112422,0.0001722,2]
[400837689,1767841844297,-300.0,0.00017227,2]
[400837691,1767841844307,-250.0,0.00017228,2]
[400837693,1767841844316,-300.0,0.00017242,2]
[400837696,1767841844326,-300.0,0.00017252,2]
[400837698,1767841844335,-663.93287602,0.00017258,2]
[400837700,1767841844344,-150.0,0.00017259,2]
[400837702,1767841844353,-1272.25514626,0.00017265,2]
[400837704,1767841844362,-833.4,0.00017274,2]
[400837706,1767841844372,-300.0,0.00017305,2]
[400837708,1767841844381,-300.0,0.00017306,2]
[400837710,1767841844391,-150.0,0.00017312,2]
[400837711,1767841844400,-300.0,0.00017314,2]
[400837713,1767841844409,-823.0,0.00017318,2]
[400837715,1767841844419,-823.0,0.00017318,2]
[400837717,1767841844427,-300.0,0.00017338,2]
[400837719,1767841844436,-833.4,0.0001734,2]
[400837721,1767841844445,-1480.88859706,0.00017346,2]
[400837723,1767841844454,-300.0,0.00017353,2]
[400837725,1767841844464,-1690.23374302,0.00017354,2]
[400837727,1767841844474,-833.0,0.0001736,2]
[400837729,1767841844483,-833.0,0.0001736,2]
[400837731,1767841844492,-162.0,0.0001736,2]
[400837733,1767841844502,-833.0,0.0001736,2]
[400837734,1767841844512,-1000.0,0.00017361,2]
[400837735,1767841844522,-300.0,0.00017364,2]
[400837736,1767841844530,-150.0,0.00017365,2]
[400837737,1767841844539,-19191.74142588,0.00017371,2]
[400837739,1767841844548,-14710.94199581,0.00017371,2]
[400837741,1767841844558,-300.0,0.00017378,2]
[400837743,1767841844567,-300.0,0.00017393,2]
[400837745,1767841844576,-150.0,0.00017393,2]
[400837747,1767841844589,-1000.0,0.000174,2]
[400837749,1767841844598,-1000.0,0.00017401,2]
[400837751,1767841844607,-833.4,0.00017406,2]
[400837753,1767841844617,-150.0,0.00017418,2]
[400837755,1767841844627,-2061.0,0.00017423,2]
[400837757,1767841844636,-150.0,0.00017429,2]
[400837759,1767841844646,-300.0,0.00017429,2]
[400837762,1767841844655,-536.14,0.00017445,2]
[400837764,1767841844664,-300.0,0.00017446,2]
[400837765,1767841844673,-150.0,0.0001745,2]
[400837768,1767841844682,-340.97,0.00017452,2]
[400837770,1767841844691,-150.0,0.00017471,2]
[400837772,1767841844700,-833.4,0.00017472,2]
[400837774,1767841844710,-3696.35,0.00017476,2]
[400837776,1767841844719,-3292.0,0.00017484,2]
[400837778,1767841844728,-150.0,0.00017489,2]
[400837780,1767841844737,-150.0,0.0001749,2]
[400837782,1767841844747,-188.509792,0.00017499,2]
[400837784,1767841844756,-2000.0,0.000175,2]
[400837786,1767841844765,-508.40531159,0.00017502,2]
[400837788,1767841844776,-3000.0,0.00017502,2]
[400837790,1767841844785,-1405.0,0.00017514,2]
[400837792,1767841844794,-1330.0,0.00017514,2]
[400837794,1767841844803,-300.0,0.00017517,2]
[400837795,1767841844813,-300.0,0.00017521,2]
[400837798,1767841844822,-787.62614361,0.00017521,2]
[400837799,1767841844831,-150.0,0.00017524,2]
[400837801,1767841844841,-621.371,0.00017524,2]
[400837803,1767841844850,-1348.019,0.00017524,2]
[400837805,1767841844859,-505.0,0.00017524,2]
[400837807,1767841844868,-1209.372,0.00017524,2]
[400837809,1767841844878,-923.791,0.00017524,2]
[400837812,1767841844887,-4819.0,0.00017524,2]
[400837814,1767841844896,-2436.0,0.00017524,2]
[400837816,1767841844905,-6552.0,0.00017524,2]
[400837818,1767841844914,-150.0,0.00017524,2]
[400837820,1767841844922,-150.0,0.00017526,2]
[400837849,1767841845181,-150.0,0.00017531,2]
[400837851,1767841845192,-2061.0,0.00017534,2]
[400837853,1767841845202,-241.73307518,0.00017534,2]
[400837855,1767841845211,-833.4,0.00017538,2]
[400837857,1767841845220,-300.0,0.00017541,2]
[400837859,1767841845229,-150.0,0.00017576,2]
[400837861,1767841845239,-300.0,0.00017591,2]
[400837863,1767841845248,-833.4,0.00017604,2]
[400837865,1767841845257,-150.0,0.00017607,2]
[400837867,1767841845266,-300.0,0.00017614,2]
[400837869,1767841845275,-2061.0,0.00017614,2]
[400837871,1767841845285,-300.0,0.00017618,2]
[400837873,1767841845294,-300.0,0.0001762,2]
[400837875,1767841845303,-1000.0,0.00017626,2]
[400837877,1767841845313,-168.51620742,0.00017626,2]
[400837879,1767841845323,-150.0,0.00017629,2]
[400837881,1767841845332,-637.69822594,0.00017633,2]
[400837883,1767841845342,-300.0,0.00017634,2]
[400837885,1767841845351,-5309.74765664,0.0001764,2]
[400837887,1767841845360,-285.15739,0.00017663,2]
[400837889,1767841845369,-833.4,0.0001767,2]
[400837891,1767841845378,-2061.0,0.00017673,2]
[400837894,1767841845388,-833.0,0.0001768,2]
[400837896,1767841845398,-162.0,0.0001768,2]
[400837898,1767841845407,-833.0,0.0001768,2]
[400837900,1767841845417,-833.0,0.0001768,2]
[400837902,1767841845426,-162.0,0.0001768,2]
[400837904,1767841845434,-833.0,0.0001768,2]
[400837906,1767841845444,-162.0,0.0001768,2]
[400837908,1767841845453,-150.0,0.00017682,2]
[400837910,1767841845462,-150.0,0.00017684,2]
[400837912,1767841845471,-300.0,0.00017693,2]
[400837914,1767841845481,-168.51620742,0.00017695,2]
[400837916,1767841845491,-300.0,0.00017706,2]
[400837918,1767841845500,-25000.0,0.00017706,3]
[400837920,1767841845511,-150.0,0.0001771,2]
[400837922,1767841845522,-10451.53818547,0.00017715,3]
[400837998,1767841846210,-14548.46181453,0.00017715,3]
[400838000,1767841846220,-2061.0,0.00017722,2]
[400838002,1767841846229,-300.0,0.00017722,2]
[400838005,1767841846239,-25000.0,0.00017724,3]
[400838007,1767841846248,-156.0,0.00017726,2]
[400838009,1767841846257,-25000.0,0.00017733,3]
[400838011,1767841846266,-300.0,0.00017734,2]
[400838013,1767841846275,-150.0,0.00017735,2]
[400838015,1767841846285,-833.4,0.00017736,2]
[400838017,1767841846294,-25000.0,0.00017742,3]
[400838019,1767841846303,-150.0,0.00017744,2]
[400838021,1767841846313,-300.0,0.00017746,2]
[400838023,1767841846324,-150.0,0.00017746,2]
[400838024,1767841846334,-163.7104368,0.00017746,2]
[400838027,1767841846343,-300.0,0.00017747,2]
[400838029,1767841846353,-25000.0,0.0001775,3]
[400838031,1767841846362,-300.0,0.00017754,2]
[400838033,1767841846372,-25000.0,0.00017759,3]
[400838035,1767841846381,-168.51620742,0.00017763,2]
[400838037,1767841846390,-2061.0,0.00017764,2]
[400838039,1767841846404,-637.69822592,0.00017767,2]
[400838041,1767841846419,-25000.0,0.00017768,3]
[400838043,1767841846429,-624.77,0.00017775,2]
[400838045,1767841846438,-661.33,0.00017775,2]
[400838047,1767841846448,-661.33,0.00017775,2]
[400838049,1767841846457,-661.33,0.00017775,2]
[400838051,1767841846466,-661.33,0.00017775,2]
[400838053,1767841846476,-661.33,0.00017775,2]
[400838055,1767841846485,-661.33,0.00017775,2]
[400838057,1767841846494,-661.33,0.00017775,2]
[400838059,1767841846504,-661.33,0.00017775,2]
[400838061,1767841846515,-661.33,0.00017775,2]
[400838063,1767841846525,-661.33,0.00017775,2]
[400838065,1767841846535,-661.33,0.00017775,2]
[400838067,1767841846544,-25000.0,0.00017777,3]
[400838069,1767841846554,-150.0,0.00017779,2]
[400838071,1767841846564,-1000.0,0.00017784,2]
[400838073,1767841846574,-25000.0,0.00017786,3]
[400838075,1767841846584,-150.0,0.00017788,2]
[400838077,1767841846594,-25000.0,0.00017794,3]
[400838080,1767841846605,-1000.0,0.000178,2]
[400838082,1767841846618,-833.4,0.00017802,2]
[400838084,1767841846635,-25000.0,0.00017803,3]
[400838086,1767841846655,-346.92554585,0.00017804,2]
[400838088,1767841846666,-666.72878,0.00017804,2]
[400838091,1767841846678,-599.60298507,0.00017805,2]
[400838093,1767841846688,-2061.0,0.00017805,2]
[400838095,1767841846700,-688.49839244,0.00017806,2]
[400838096,1767841846710,-300.0,0.00017806,2]
[400838099,1767841846720,-25000.0,0.00017812,3]
[400838100,1767841846730,-300.0,0.00017812,2]
[400838102,1767841846739,-157.19112422,0.00017813,2]
[400838104,1767841846748,-300.0,0.00017814,2]
[400838107,1767841846759,-300.0,0.00017815,2]
[400838108,1767841846769,-2016.21702,0.0001782,2]
[400838111,1767841846779,-2016.21703,0.0001782,2]
[400838112,1767841846789,-25000.0,0.00017821,3]
[400838115,1767841846799,-300.0,0.00017825,2]
[400838116,1767841846808,-300.0,0.00017826,2]
[400838119,1767841846818,-500.0,0.00017829,2]
[400838120,1767841846828,-25000.0,0.0001783,3]
[400838122,1767841846837,-298.06900978,0.0001783,2]
[400838124,1767841846847,-2016.21702,0.0001783,2]
[400838126,1767841846856,-168.51620742,0.00017832,2]
[400838128,1767841846865,-1000.0,0.00017833,2]
[400838130,1767841846875,-25000.0,0.00017838,3]
[400838132,1767841846884,-150.0,0.00017841,2]
[400838134,1767841846893,-25000.0,0.00017847,3]
[400838136,1767841846902,-25000.0,0.00017856,3]
[400838138,1767841846912,-200.0,0.00017856,2]
[400838140,1767841846921,-150.0,0.00017858,2]
[400838142,1767841846930,-2016.21703,0.0001786,2]
[400838144,1767841846940,-25000.0,0.00017865,3]
[400838146,1767841846950,-300.0,0.00017868,2]
[400838148,1767841846960,-833.4,0.00017868,2]
[400838150,1767841846969,-150.0,0.00017871,2]
[400838152,1767841846979,-511.22,0.00017872,2]
[400838155,1767841846988,-177.4888516,0.00017873,3]
[400838156,1767841846998,-25000.0,0.00017874,3]
[400838158,1767841847007,-2016.21703,0.0001788,2]
[400838160,1767841847017,-300.0,0.00017881,2]
[400838163,1767841847028,-25000.0,0.00017882,3]
[400838165,1767841847037,-10000.0,0.00017889,2]
[400838167,1767841847047,-25000.0,0.00017891,3]
[400838169,1767841847057,-150.0,0.00017894,2]
[400838183,1767841847178,-500.0,0.00017899,2]
[400838184,1767841847188,-500.0,0.00017899,2]
[400838186,1767841847197,-787.62614361,0.00017899,2]
[400838188,1767841847207,-875.27078638,0.000179,2]
[400838190,1767841847217,-25000.0,0.000179,3]
[400838192,1767841847226,-637.69822592,0.000179,2]
[400838194,1767841847236,-14710.94199581,0.000179,2]
[400838196,1767841847247,-19191.74142588,0.000179,2]
[400838199,1767841847257,-168.51620742,0.000179,2]
[400838201,1767841847266,-6339.59380488,0.000179,2]
[400838203,1767841847275,-300.0,0.00017902,2]
[400838205,1767841847285,-300.0,0.00017904,2]
[400838207,1767841847295,-2016.21703,0.0001791,2]
[400838209,1767841847304,-300.0,0.00017917,2]
[400838210,1767841847313,-1100.0,0.00017932,2]
[400838212,1767841847323,-833.4,0.00017934,2]
[400838215,1767841847332,-300.0,0.00017946,2]
[400838216,1767841847342,-300.0,0.00017946,2]
[400838218,1767841847352,-150.0,0.00017947,2]
[400838220,1767841847361,-2061.0,0.00017963,2]
[400838222,1767841847371,-1000.0,0.0001797,2]
[400838224,1767841847382,-500.0,0.0001797,2]
[400838226,1767841847391,-1000.0,0.0001797,2]
[400838228,1767841847400,-500.0,0.0001797,2]
[400838230,1767841847409,-1000.0,0.0001797,2]
[400838232,1767841847419,-500.0,0.0001797,2]
[400838234,1767841847428,-1000.0,0.0001797,2]
[400838236,1767841847437,-500.0,0.0001797,2]
[400838238,1767841847446,-984.41347442,0.0001797,2]
[400838240,1767841847455,-1000.0,0.0001797,2]
[400838242,1767841847464,-1000.0,0.0001797,2]
[400838244,1767841847473,-1000.0,0.0001797,2]
[400838246,1767841847482,-1000.0,0.0001797,2]
[400838248,1767841847491,-1000.0,0.0001797,2]
[400838250,1767841847500,-1246.54474908,0.0001797,2]
[400838252,1767841847511,-500.75581913,0.00017973,2]
[400838254,1767841847521,-500.0,0.00017973,2]
[400838256,1767841847532,-500.17178809,0.00017973,2]
[400838258,1767841847542,-500.0,0.00017973,2]
[400838259,1767841847551,-633.01352033,0.00017973,2]
[400838261,1767841847560,-338.62982115,0.00017973,2]
[400838263,1767841847570,-501.18870733,0.00017973,2]
[400838265,1767841847579,-500.0,0.00017973,2]
[400838267,1767841847590,-150.0,0.00017973,2]
[400838269,1767841847599,-1000.0,0.00017976,2]
[400838271,1767841847608,-500.0,0.00017982,2]
[400838273,1767841847619,-1186.44134713,0.0001799,2]
[400838275,1767841847628,-1186.44134713,0.0001799,2]
[400838277,1767841847638,-188.509792,0.00017997,2]
[400838279,1767841847647,-177.65368226,0.00017999,2]
[400838281,1767841847657,-500.0,0.00017999,2]
[400838283,1767841847667,-500.0,0.00017999,2]
[400838285,1767841847676,-500.0,0.00017999,2]
[400838287,1767841847686,-363.73176274,0.00017999,2]
[400838289,1767841847696,-252.87356722,0.00017999,2]
[400838291,1767841847706,-300.0,0.00017999,2]
[400838293,1767841847716,-221.29262327,0.00017999,2]
[400838295,1767841847726,-500.0,0.00017999,2]
[400838297,1767841847736,-500.0,0.00017999,2]
[400838299,1767841847745,-500.0,0.00017999,2]
[400838301,1767841847755,-500.0,0.00017999,2]
[400838303,1767841847764,-500.0,0.00017999,2]
[400838305,1767841847775,-500.0,0.00017999,2]
[400838306,1767841847787,-500.0,0.00017999,2]
[400838308,1767841847796,-500.0,0.00017999,2]
[400838310,1767841847804,-500.0,0.00017999,2]
[400838312,1767841847813,-500.0,0.00017999,2]
[400838314,1767841847823,-338.00886573,0.00017999,2]
[400838316,1767841847832,-201.54350759,0.00017999,2]
[400838318,1767841847841,-300.0,0.00017999,2]
[400838320,1767841847850,-666.0,0.00017999,2]
[400838322,1767841847858,-277.65248168,0.00017999,2]
[400838324,1767841847867,-300.0,0.00017999,2]
[400838326,1767841847876,-666.0,0.00017999,2]
[400838328,1767841847885,-309.21247739,0.00017999,2]
[400838329,1767841847894,-300.0,0.00017999,2]
[400838331,1767841847903,-666.0,0.00017999,2]
[400838334,1767841847912,-300.0,0.00017999,2]
[400838335,1767841847921,-5970.77362135,0.00017999,2]
[400838337,1767841847931,-154.67877044,0.00018,2]
[400838339,1767841847940,-5368126.95181649,0.00018,2]
[400838353,1767841848067,-4081757.36259488,0.00018,2]
[400838436,1767841849023,-1.7e-07,0.00018,2]
[400841789,1767841892836,52.39598306,0.00012777,2]
[400841790,1767841892862,4237.84701694,0.00012777,2]
[400841791,1767841892902,238.032,0.00012777,2]
[400841792,1767841894084,-343.24253653,0.00012938,2]
[400841793,1767841896144,-500.0,0.00012938,2]
[400841794,1767841898152,-163.43658367,0.00012938,2]
[400841795,1767841901363,-300.0,0.00012938,2]
[400841797,1767841903127,-252.1412399,0.00012938,2]
[400841798,1767841905092,-250.0,0.00012938,2]
[400841799,1767841906659,-236.62451768,0.00012938,2]
[400841800,1767841908121,-160.16809642,0.00012938,2]
[400841801,1767841909733,-223.4736911,0.00012938,2]
[400841802,1767841912151,-290.29070041,0.00012873,2]
[400841803,1767841914936,-165.54985788,0.00012873,2]
[400841804,1767841918793,-167.62014212,0.00012873,2]
[400841805,1767841921171,-122.76908059,0.00012873,2]
[400841806,1767841921206,-9754.47183882,0.00012938,2]
[400841807,1767841921381,-632.77467577,0.00012938,2]
[400841808,1767841921418,-8734.46064846,0.00013038,2]
[400841809,1767841921508,-10000.01,0.00013038,2]
[400841810,1767841921556,160.11496642,0.00012937,2]
[400841811,1767841921709,-139.88503358,0.00012937,2]
[400841812,1767841921754,-9720.23993284,0.00013038,2]
[400841813,1767841921802,-10000.01,0.00013038,2]
[400841814,1767841921907,-10000.01,0.00013038,2]
[400841815,1767841922017,-10000.01,0.00013038,2]
[400841816,1767841922851,-150.0,0.00013037,2]
[400841817,1767841922935,-9700.01,0.00013038,2]
[400841818,1767841922948,-10000.01,0.00013038,2]
[400841819,1767841927118,-10000.01,0.00013038,2]
[400841820,1767841927212,-10000.01,0.00013038,2]
[400841821,1767841927303,-10000.01,0.00013038,2]
[400841822,1767841927426,-10000.01,0.00013038,2]
[400841823,1767841927550,-10000.01,0.00013038,2]
[400841824,1767841927674,-10000.01,0.00013038,2]
[400841825,1767841927799,-10000.01,0.00013038,2]
[400841826,1767841927899,-10000.01,0.00013038,2]
[400841827,1767841928282,-10000.01,0.00013038,2]
[400841829,1767841946738,-10000.01,0.00013038,2]
[400841830,1767841946930,-10000.01,0.00013038,2]
[400841831,1767841947050,-10000.01,0.00013038,2]
[400841832,1767841952070,-10000.01,0.00013038,2]
[400841833,1767841952166,-10000.01,0.00013038,2]
[400841834,1767841952275,-10000.01,0.00013038,2]
[400841835,1767841955403,-10000.01,0.00013038,2]
[400841836,1767841955452,-10000.01,0.00013038,2]
[400841837,1767841955574,-10000.01,0.00013038,2]
[400841838,1767841958187,-10000.01,0.00013038,2]
[400841839,1767841958283,-10000.01,0.00013038,2]
[400841840,1767841958449,-10000.01,0.00013038,2]
[400841841,1767841961255,-10000.01,0.00013038,2]
[400841842,1767841961357,-10000.01,0.00013038,2]
[400841843,1767841961457,-10000.01,0.00013038,2]
[400841844,1767841973395,-10000.01,0.00013038,2]
[400841845,1767841973514,-10000.01,0.00013038,2]
[400841847,1767841979526,-10000.01,0.00013038,2]
[400841848,1767841979666,-10000.01,0.00013038,2]
[400841849,1767841979794,-10000.01,0.00013038,2]
[400841850,1767841979989,-10000.01,0.00013038,2]
[400841851,1767841980105,-10000.01,0.00013038,2]
[400841852,1767841980223,-10000.01,0.00013038,2]
[400841853,1767841980340,-10000.01,0.00013038,2]
[400841854,1767841980463,-10000.01,0.00013038,2]
[400841855,1767841980584,-10000.01,0.00013038,2]
[400841856,1767841984942,428.93696612,0.00012808,2]
[400841857,1767841984963,71.06303388,0.00012808,2]
[400841864,1767841993989,9293.89292713,0.00012938,2]
[400841872,1767842002241,-300.0,0.00013037,2]
[400841873,1767842002270,-300.0,0.00013037,2]
[400841874,1767842002572,-9506.12707287,0.00013038,2]
[400841875,1767842002738,-10000.01,0.00013038,2]
[400841876,1767842002829,-10000.01,0.00013038,2]
[400841877,1767842002960,-10000.01,0.00013038,2]
[400841878,1767842003088,-10000.01,0.00013038,2]
[400841879,1767842003198,-10000.01,0.00013038,2]
[400841880,1767842006940,-10000.01,0.00013038,2]
[400841881,1767842007137,-10000.01,0.00013038,2]
[400841882,1767842010417,-10000.01,0.00013038,2]
[400841883,1767842010431,-10000.01,0.00013038,2]
[400841884,1767842010456,-10000.01,0.00013038,2]
[400841885,1767842010834,-10000.01,0.00013038,2]
[400841886,1767842010934,-10000.01,0.00013038,2]
[400841887,1767842011050,-10000.01,0.00013038,2]
[400841891,1767842047295,-400.02526674,0.00012938,2]
[400841918,1767842212697,-1200.0,0.00012937,2]
[400841919,1767842212727,-300.0,0.00012937,2]
[400841920,1767842212756,-300.0,0.00012937,2]
[400841921,1767842212785,-300.0,0.00012937,2]
[400841922,1767842212813,-150.0,0.00012937,2]
[400841923,1767842212842,-250.0,0.00012938,2]
[400841924,1767842212872,-2500.0,0.00012938,2]
[400841925,1767842212986,-0.01,0.00012938,2]
[400841926,1767842213011,-10000.01,0.00012938,2]
[400841927,1767842213098,-10000.01,0.00012938,2]
[400841928,1767842215658,-248.04725154,0.00012938,2]
[400841929,1767842215690,-508.24603233,0.00012938,2]
[400841930,1767842215720,-250.0,0.00013028,2]
[400841931,1767842215749,-500.0,0.00013037,2]
[400841932,1767842215778,-315.3601079,0.00013037,2]
[400841933,1767842215810,-593.12488379,0.00013037,2]
[400841934,1767842215840,-500.0,0.00013037,2]
[400841935,1767842215871,-500.0,0.00013037,2]
[400841936,1767842215901,-255.17440876,0.00013037,2]
[400841937,1767842215934,-202.31324064,0.00013037,2]
[400841938,1767842216094,-2255.47815008,0.00013038,2]
[400841939,1767842216113,-10000.01,0.00013038,2]
[400841952,1767842243175,-381.18452425,0.00012938,2]
[400841953,1767842243198,-200.0,0.0001303,2]
[400841954,1767842243219,-200.0,0.0001303,2]
[400841955,1767842243241,-151.0,0.0001303,2]
[400841956,1767842243262,-113.23875364,0.0001303,2]
[400841957,1767842246196,-37.76124636,0.0001303,2]
[400841958,1767842246217,-151.0,0.0001303,2]
[400841959,1767842246238,-61.98477381,0.0001303,2]
[400841960,1767842248989,-89.01522619,0.0001303,2]
[400841961,1767842249010,-151.0,0.0001303,2]
[400841962,1767842249032,-0.8818838,0.0001303,2]
[400841965,1767842251365,-252.177763,0.00012873,2]
[400841966,1767842251390,-233.23822761,0.0001303,2]
[400841970,1767842255305,-259.860247,0.0001303,2]
[400841973,1767842257897,-6.01964159,0.0001303,2]
[400841974,1767842257919,-151.0,0.0001303,2]
[400841975,1767842257942,-21.36715775,0.0001303,2]
[400841977,1767842259381,-235.66563197,0.0001303,2]
[400841978,1767842261401,-169.3283259,0.0001303,2]
[400841979,1767842266348,-73.63888438,0.0001303,2]
[400841980,1767842266385,-151.0,0.0001303,2]
[400841981,1767842266411,-197.11187704,0.0001303,2]
[400841982,1767842267716,-232.48110095,0.0001303,2]
[400841984,1767842270967,-70.40702201,0.0001303,2]
[400841985,1767842270989,-151.0,0.0001303,2]
[400841986,1767842271012,-26.03260426,0.0001303,2]
[400841988,1767842276103,-378.9886536,0.0001303,2]
[400841989,1767842277615,-94.97874214,0.0001303,2]
[400841990,1767842277638,-151.0,0.0001303,2]
[400841991,1767842277664,-63.37096579,0.0001303,2]
[400841993,1767842279185,-196.84127733,0.0001303,2]
[400841994,1767842280681,-154.74431651,0.0001303,2]
[400841996,1767842282876,-150.0,0.00013029,2]
[400841997,1767842282898,-70.82894331,0.0001303,2]
[400842014,1767842387500,-2500.0,0.00012938,2]
[400842015,1767842387529,-952.35394664,0.00012938,2]
[400842016,1767842387558,-397.06721274,0.00012938,2]
[400842017,1767842387587,-397.06721274,0.00012938,2]
[400842018,1767842387617,-14.21449706,0.0001303,2]
[400842019,1767842387647,-151.0,0.0001303,2]
[400842020,1767842387678,-500.0,0.0001303,2]
[400842021,1767842387708,-25.60426164,0.0001303,2]
[400842022,1767842387858,-125.39573836,0.0001303,2]
[400842023,1767842390396,-500.0,0.0001303,2]
[400842024,1767842390425,-151.0,0.0001303,2]
[400842025,1767842390454,-633.89985627,0.0001303,2]
[400842026,1767842390482,-151.0,0.0001303,2]
[400842027,1767842390510,-151.0,0.0001303,2]
[400842028,1767842390539,-151.0,0.0001303,2]
[400842029,1767842390567,-151.0,0.0001303,2]
[400842030,1767842390594,-151.0,0.0001303,2]
[400842031,1767842390622,-200.0,0.0001303,2]
[400842032,1767842390650,-151.0,0.0001303,2]
[400842033,1767842390681,-151.0,0.0001303,2]
[400842034,1767842390708,-151.0,0.0001303,2]
[400842035,1767842390737,-500.0,0.0001303,2]
[400842036,1767842390766,-151.0,0.0001303,2]
[400842037,1767842390794,-151.0,0.0001303,2]
[400842038,1767842390822,-151.0,0.0001303,2]
[400842039,1767842390850,-151.0,0.0001303,2]
[400842040,1767842390878,-151.0,0.0001303,2]
[400842041,1767842390906,-151.0,0.0001303,2]
[400842042,1767842390934,-151.0,0.0001303,2]
[400842043,1767842390962,-151.0,0.0001303,2]
[400842044,1767842390990,-151.0,0.0001303,2]
[400842045,1767842391020,-151.0,0.0001303,2]
[400842046,1767842391048,-151.0,0.0001303,2]
[400842047,1767842391077,-45.37120312,0.00013037,2]
[400842048,1767842391550,-201.46788122,0.00013037,2]
[400842049,1767842393459,-250.0,0.00013037,2]
[400842050,1767842393488,-193.0,0.00013037,2]
[400842051,1767842393538,-9114.01,0.00013038,2]
[400842052,1767842397100,-10000.01,0.00013038,2]
[400842053,1767842397114,-10000.01,0.00013038,2]
[400842054,1767842397129,-10000.01,0.00013038,2]
[400842055,1767842397149,-10000.01,0.00013038,2]
[400842058,1767842402556,-300.0,0.00013037,2]
[400842059,1767842402588,-1200.0,0.00013037,2]
[400842060,1767842402620,-300.0,0.00013037,2]
[400842061,1767842402754,-6400.01,0.00013038,2]
[400842062,1767842402800,-10000.01,0.00013038,2]
[400842063,1767842402871,-10000.01,0.00013038,2]
[400842064,1767842402977,-10000.01,0.00013038,2]
[400842065,1767842403120,-10000.01,0.00013038,2]
[400842075,1767842430414,164.59,0.00010323,2]
[400842076,1767842430650,164.59,0.00012044,2]
[400842085,1767842504671,1000.0,0.00012813,2]
[400842093,1767842513343,1500.0,0.00012728,2]